bitfinex/quotes_ETHUSD_20241019
["timestamp","ask_amount","ask_price","bid_price","bid_amount"]
[1729380932552,3.77258,2650.7,2650.3,0.78468532]
[1729380932887,3.77246,2650.8,2650.3,0.78468532]
[1729380933736,3.77272,2650.7,2650.3,0.78468532]
[1729380934090,3.77301,2650.4,2650.3,0.78468532]
[1729380934880,3.77301,2650.4,2650.3,0.81799754]
[1729380936241,3.77301,2650.4,2650.3,0.03331222]
[1729380936442,3.77301,2650.4,2650.1,0.78468532]
[1729380936653,3.77301,2650.4,2650.3,0.03331222]
[1729380936939,3.77318,2650.3,2650.1,0.78468532]
[1729380937144,3.7733,2650.2,2650.1,0.78468532]
[1729380937774,3.77344,2650.1,2650.0,0.78468532]
[1729380941951,3.77344,2650.1,2650.0,0.78357809]
[1729380942145,3.77344,2650.1,2649.9,1.17702798]
[1729380942598,3.77344,2650.1,2650.0,0.78359779]
[1729380942956,3.77344,2650.1,2649.9,1.17702798]
[1729380943152,3.77344,2650.1,2650.0,1.17702798]
[1729380943372,3.77344,2650.1,2649.9,1.17702798]
[1729380943574,3.77344,2650.1,2650.0,1.17702798]
[1729380943898,7.54696,2650.1,2649.9,1.17702798]
[1729380944093,3.77358,2650.0,2649.9,1.17702798]
[1729380944305,4.53278,2650.0,2649.9,0.78391685]
[1729380944452,4.53278,2650.0,2649.8,0.78391685]
[1729380944656,3.77372,2649.9,2649.8,0.78391685]
[1729380945058,3.77401,2649.7,2649.6,0.78391685]
[1729380945256,3.77386,2649.8,2649.6,0.78391685]
[1729380945563,3.77401,2649.7,2649.6,0.78391685]
[1729380945773,3.77401,2649.7,2649.5,2.00572798]
[1729380946898,3.77401,2649.7,2649.6,0.7835845]
[1729380947191,3.77401,2649.7,2649.6,0.78359289]
[1729380950814,3.77401,2649.7,2649.5,2.00572798]
[1729380951022,3.77401,2649.7,2649.6,0.78345583]
[1729380951537,3.77386,2649.8,2649.6,1.17702798]
[1729380951734,3.77386,2649.8,2649.7,0.78346655]
[1729380953138,3.77386,2649.8,2649.6,0.78346655]
[1729380953309,3.77401,2649.7,2649.6,1.17702798]
[1729380953636,3.77386,2649.8,2649.6,1.31656453]
[1729380953795,3.77386,2649.8,2649.7,0.92312725]
[1729380953994,3.77386,2649.8,2649.7,0.92312706]
[1729380954193,5.09256,2649.8,2649.7,0.78359051]
[1729380954432,5.979189,2649.8,2649.7,0.13953655]
[1729380954940,3.77401,2649.7,2649.6,0.13953655]
[1729380955127,3.77401,2649.7,2649.5,0.78359051]
[1729380955128,3.77415,2649.6,2649.5,0.78359051]
[1729380955435,3.77415,2649.6,2649.5,0.92363552]
[1729380957346,4.32415,2649.6,2649.5,0.92363552]
[1729380958687,4.32415,2649.6,2649.5,0.78359051]
[1729380958886,4.32415,2649.6,2649.5,0.92380676]
[1729380960092,4.32415,2649.6,2649.5,0.95848464]
[1729380960254,5.2994989,2649.6,2649.5,0.17489413]
[1729380960461,6.0681989,2649.6,2649.5,0.95937341]
[1729380960844,6.0681989,2649.6,2649.5,0.17489413]
[1729380961049,6.46010951,2649.6,2649.5,0.03467788]
[1729380961245,3.77443,2649.4,2649.3,0.14025232]
[1729380961568,0.7687,2649.3,2649.2,0.78447928]
[1729380961770,0.7687,2649.3,2649.2,0.1402407]
[1729380961771,4.54328,2649.3,2649.2,0.1402407]
[1729380962007,4.54328,2649.3,2649.2,0.92471998]
[1729380962361,5.09328,2649.3,2649.2,0.92512619]
[1729380962700,6.357481,2649.3,2649.2,0.92512619]
[1729380962858,5.09328,2649.3,2649.2,0.92512619]
[1729380964279,4.32458,2649.3,2649.2,0.92512619]
[1729380964594,4.32458,2649.3,2649.2,0.78488549]
[1729380964769,4.32458,2649.3,2649.2,0.92511789]
[1729380966359,4.32458,2649.3,2649.2,0.1402324]
[1729380967004,4.32458,2649.3,2649.2,1.31726038]
[1729380968397,4.32458,2649.3,2649.2,0.1402324]
[1729380969087,3.77472,2649.2,2649.1,1.56937064]
[1729380969285,3.77472,2649.2,2649.1,2.10576386]
[1729380971317,3.77472,2649.2,2649.1,0.14021918]
[1729380972181,4.32472,2649.2,2649.1,0.14021918]
[1729380974806,4.32472,2649.2,2649.1,0.17547029]
[1729380975398,4.32472,2649.2,2649.1,0.17558734]
[1729380976657,4.32472,2649.2,2649.1,2.1470418]
[1729380977160,4.32472,2649.2,2649.1,0.17558734]
[1729380977446,4.32472,2649.2,2649.1,2.14700389]
[1729380978326,4.32472,2649.2,2649.1,1.75323531]
[1729380978625,4.32472,2649.2,2649.1,0.17558734]
[1729380979357,4.32472,2649.2,2649.1,0.17561356]
[1729380980228,4.32472,2649.2,2649.1,1.75351003]
[1729380982451,4.32472,2649.2,2649.1,0.17561356]
[1729380983332,4.32472,2649.2,2649.1,1.35967513]
[1729380986356,4.32472,2649.2,2649.1,0.17578305]
[1729380987460,4.32472,2649.2,2649.1,1.75367952]
[1729380990174,4.32472,2649.2,2649.1,1.7538597]
[1729380990634,5.14062,2649.2,2649.1,1.7538597]
[1729380992251,5.14062,2649.2,2649.1,2.15207948]
[1729380993855,4.32472,2649.2,2649.1,2.15210775]
[1729380995820,4.32472,2649.2,2649.1,2.15288524]
[1729380997522,4.32472,2649.2,2649.1,2.01214485]
[1729380997721,4.32472,2649.2,2649.1,2.15288432]
[1729380999243,4.32472,2649.2,2649.1,0.17599058]
[1729380999745,4.32472,2649.2,2649.1,2.15433684]
[1729380999951,4.32472,2649.2,2649.1,0.03525111]
[1729381000274,4.32472,2649.2,2649.1,0.14074493]
[1729381000436,4.32472,2649.2,2649.1,0.17603399]
[1729381000838,6.01333048,2649.2,2649.1,2.15486034]
[1729381001179,6.01333048,2649.2,2649.1,0.17603941]
[1729381001538,6.01333048,2649.2,2649.1,0.17602096]
[1729381002247,6.01333048,2649.2,2649.1,2.15484731]
[1729381003081,6.01333048,2649.2,2649.1,0.17602096]
[1729381003375,6.01333048,2649.2,2649.1,2.15484731]
[1729381005376,6.01333048,2649.2,2649.1,2.15643961]
[1729381005542,6.36704349,2649.2,2649.1,0.17602096]
[1729381006257,6.36704349,2649.2,2649.1,2.15634545]
[1729381006686,6.36704349,2649.2,2649.1,0.17602096]
[1729381007383,6.36704349,2649.2,2649.1,2.1563204]
[1729381008117,6.36704349,2649.2,2649.1,0.17602096]
[1729381008276,6.36704723,2649.2,2649.1,0.17593618]
[1729381008695,6.01333048,2649.2,2649.1,0.17593618]
[1729381009101,6.36703143,2649.2,2649.1,0.17593618]
[1729381009319,6.01333048,2649.2,2649.1,0.17593618]
[1729381009526,6.36703153,2649.2,2649.1,0.17593618]
[1729381010110,6.01333048,2649.2,2649.1,0.17593618]
[1729381010309,6.36702753,2649.2,2649.1,0.17593618]
[1729381010611,6.01333048,2649.2,2649.1,0.17593618]
[1729381010922,4.32472,2649.2,2649.1,0.17593618]
[1729381012009,4.32472,2649.2,2649.1,0.17594457]
[1729381012308,4.32472,2649.2,2649.1,0.17593546]
[1729381015741,4.32472,2649.2,2649.1,0.17594299]
[1729381019912,3.77472,2649.2,2649.1,0.17594299]
[1729381020809,3.77472,2649.2,2649.1,2.55259231]
[1729381021039,3.77472,2649.2,2649.1,0.17594299]
[1729381022050,3.77472,2649.2,2649.1,0.17585549]
[1729381023650,3.77472,2649.2,2649.1,2.55269528]
[1729381024646,3.77472,2649.2,2649.1,0.17585549]
[1729381025626,3.77472,2649.2,2649.1,2.55269528]
[1729381026249,3.77472,2649.2,2649.1,2.51740622]
[1729381027752,4.32472,2649.2,2649.1,0.14056643]
[1729381027991,5.92113047,2649.2,2649.1,0.14056643]
[1729381028115,6.27483272,2649.2,2649.1,2.12155226]
[1729381028318,6.68590987,2649.2,2649.1,4.86e-06]
[1729381028511,6.68590987,2649.2,2649.1,7.33e-06]
[1729381028512,5.90350987,2649.2,2649.1,7.33e-06]
[1729381029151,3.77515,2648.9,2648.8,1.98098583]
[1729381029361,6.34950825,2648.9,2648.8,1.98098583]
[1729381030216,5.995806,2648.9,2648.8,1.98098583]
[1729381030919,4.32529,2648.8,2648.7,1.98098583]
[1729381031314,4.32529,2648.8,2648.6,1.98098583]
[1729381031555,4.32543,2648.7,2648.6,1.98098583]
[1729381031739,5.3025676,2648.7,2648.6,1.98098583]
[1729381032957,5.3025676,2648.7,2648.6,1.97941988]
[1729381033408,4.32543,2648.7,2648.6,1.97941988]
[1729381033570,3.77543,2648.7,2648.6,0.7972]
[1729381033769,3.77543,2648.7,2648.6,2.77625138]
[1729381033983,3.77543,2648.7,2648.6,0.7972]
[1729381034185,3.77543,2648.7,2648.6,2.77623907]
[1729381034384,3.77543,2648.7,2648.6,1.97883509]
[1729381034559,4.32543,2648.7,2648.6,1.97883509]
[1729381035201,3.77572,2648.5,2648.4,2.3745818]
[1729381036253,3.77572,2648.5,2648.3,2.3745818]
[1729381037596,3.77586,2648.4,2648.3,2.3745818]
[1729381039218,3.776,2648.3,2648.2,3.1717818]
[1729381040483,3.776,2648.3,2648.2,3.31138413]
[1729381042095,3.776,2648.3,2648.2,0.93680233]
[1729381042810,3.776,2648.3,2648.2,0.13960233]
[1729381044398,3.776,2648.3,2648.2,2.11690518]
[1729381044784,5.081186,2648.3,2648.2,2.11690518]
[1729381045727,5.081186,2648.3,2648.2,1.97730285]
[1729381045879,5.081186,2648.3,2648.2,2.11684006]
[1729381046796,5.081186,2648.3,2648.2,2.1164625]
[1729381047623,5.081186,2648.3,2648.2,1.97692529]
[1729381047781,5.081186,2648.3,2648.2,2.1164608]
[1729381047980,5.081186,2648.3,2647.9,2.37231035]
[1729381047981,5.081186,2648.3,2648.1,1.97692529]
[1729381048214,5.904186,2648.3,2648.2,2.11633839]
[1729381048415,4.32614,2648.2,2648.1,1.97680414]
[1729381048726,4.32614,2648.2,2648.1,2.11633839]
[1729381050662,4.32614,2648.2,2648.1,2.11574794]
[1729381050875,4.32614,2648.2,2648.1,2.11577038]
[1729381051220,4.32614,2648.2,2648.1,2.11578066]
[1729381051417,3.77614,2648.2,2648.1,2.11578066]
[1729381051623,3.77614,2648.2,2648.1,0.93143425]
[1729381052924,0.59094833,2648.7,2648.1,0.93143425]
[1729381053234,4.36637833,2648.7,2648.6,0.79038201]
[1729381053422,5.63562716,2648.7,2648.6,0.79038201]
[1729381054470,6.18562716,2648.7,2648.6,0.79038201]
[1729381055652,6.18562716,2648.7,2648.5,1.18557302]
[1729381055653,4.32557,2648.6,2648.5,1.18557302]
[1729381055829,4.32557,2648.6,2648.5,1.32521034]
[1729381057367,4.32557,2648.6,2648.5,0.13963732]
[1729381057666,4.32557,2648.6,2648.5,1.32521546]
[1729381058030,5.39824972,2648.6,2648.5,1.32521546]
[1729381058252,6.16384972,2648.6,2648.5,0.93007704]
[1729381058452,6.16384972,2648.6,2648.5,1.32521546]
[1729381058674,6.16384972,2648.6,2648.4,1.18557814]
[1729381058992,5.50566769,2648.5,2648.4,1.18557814]
[1729381059189,4.32586,2648.4,2648.3,1.58076403]
[1729381059487,4.32586,2648.4,2648.3,0.13980883]
[1729381060493,4.32586,2648.4,2648.3,2.11568697]
[1729381060985,4.32586,2648.4,2648.3,2.11605254]
[1729381061488,4.32586,2648.4,2648.3,0.13980883]
[1729381061691,4.32586,2648.4,2648.3,1.72088396]
[1729381061849,4.32586,2648.4,2648.3,2.11605254]
[1729381062249,4.32586,2648.4,2648.3,1.97624371]
[1729381062450,4.32586,2648.4,2648.3,2.11607073]
[1729381064691,4.32586,2648.4,2648.3,1.72130389]
[1729381064889,5.136018,2648.4,2648.3,0.13982702]
[1729381065626,5.136018,2648.4,2648.3,2.11686319]
[1729381065932,5.136018,2648.4,2648.3,1.72148205]
[1729381066100,5.136018,2648.4,2648.3,0.13982702]
[1729381066693,5.136018,2648.4,2648.3,2.11686319]
[1729381066914,5.136018,2648.4,2648.3,0.13982702]
[1729381067116,4.32586,2648.4,2648.3,2.11686319]
[1729381069530,4.32586,2648.4,2648.3,2.11693785]
[1729381070537,4.32586,2648.4,2648.3,2.11829121]
[1729381071248,4.32586,2648.4,2648.3,2.94729121]
[1729381071404,4.32586,2648.4,2648.3,0.96890168]
[1729381072034,3.77572,2648.5,2648.3,0.96890168]
[1729381072243,3.77572,2648.5,2648.3,0.829]
[1729381072244,3.77586,2648.4,2648.3,0.829]
[1729381072449,7.55155,2648.5,2648.3,3.34297732]
[1729381072605,3.77586,2648.4,2648.3,3.20306744]
[1729381072811,3.77586,2648.4,2648.3,3.34297787]
[1729381073246,3.77586,2648.4,2648.3,3.20306744]
[1729381073549,3.77586,2648.4,2648.3,0.9689101]
[1729381073932,3.77586,2648.4,2648.3,3.34518332]
[1729381074335,3.77586,2648.4,2648.3,2.51618332]
[1729381074534,3.77586,2648.4,2648.3,2.51652002]
[1729381075213,3.77586,2648.4,2648.3,2.51656542]
[1729381075442,3.77586,2648.4,2648.3,2.51659231]
[1729381076807,3.77586,2648.4,2648.3,2.37668221]
[1729381077021,3.77586,2648.4,2648.3,2.51657555]
[1729381080168,3.77586,2648.4,2648.3,2.51705451]
[1729381080564,3.77586,2648.4,2648.3,2.51707791]
[1729381081065,3.77586,2648.4,2648.3,0.13991674]
[1729381081655,4.610788,2648.4,2648.3,0.13991674]
[1729381082829,4.610788,2648.4,2648.1,2.77335479]
[1729381083069,3.77614,2648.2,2648.1,2.77335479]
[1729381083237,3.77614,2648.2,2648.1,0.13992546]
[1729381083443,3.77614,2648.2,2648.1,2.91382864]
[1729381083625,3.77586,2648.4,2648.1,2.91382864]
[1729381083831,3.77586,2648.4,2648.3,0.829]
[1729381084043,3.77586,2648.4,2648.3,0.96892676]
[1729381088055,3.77586,2648.4,2648.3,3.74282864]
[1729381089143,3.77586,2648.4,2648.3,0.96892676]
[1729381092066,3.77586,2648.4,2648.3,1.00108116]
[1729381093572,3.77586,2648.4,2648.3,0.8611544]
[1729381093868,7.55153,2648.5,2648.3,1.00101449]
[1729381094069,7.55153,2648.5,2648.4,0.13986009]
[1729381094396,3.77558,2648.6,2648.4,0.13986009]
[1729381094693,3.77543,2648.7,2648.6,0.7675]
[1729381094861,3.77543,2648.7,2648.6,3.28435656]
[1729381095057,3.77543,2648.7,2648.6,3.2840469]
[1729381095252,3.77543,2648.7,2648.6,0.90736009]
[1729381096856,3.77543,2648.7,2648.6,0.13986009]
[1729381097518,3.77543,2648.7,2648.6,2.51682144]
[1729381097681,3.77543,2648.7,2648.6,2.51676994]
[1729381098972,3.77543,2648.7,2648.6,2.37696135]
[1729381099319,3.77543,2648.7,2648.6,2.51676358]
[1729381099625,3.77539,2648.8,2648.6,2.51676358]
[1729381099913,3.77539,2648.8,2648.7,0.90730223]
[1729381101984,3.77529,2648.8,2648.7,3.28426358]
[1729381102188,3.77529,2648.8,2648.7,0.90730223]
[1729381102518,3.77529,2648.8,2648.7,3.28426358]
[1729381103372,3.77529,2648.8,2648.7,0.90730223]
[1729381104417,3.77529,2648.8,2648.7,0.7675]
[1729381104637,3.77529,2648.8,2648.7,0.90727516]
[1729381106490,4.56173,2649.1,2648.7,0.90727516]
[1729381106695,4.32493,2649.1,2649.0,1.58330447]
[1729381106898,4.1281427,2649.1,2649.0,0.13977516]
[1729381107534,4.1281427,2649.1,2649.0,1.72282397]
[1729381107838,4.1281427,2649.1,2649.0,1.72281928]
[1729381107839,3.77493,2649.1,2649.0,1.72281928]
[1729381108138,4.1280762,2649.1,2649.0,1.72281928]
[1729381108440,4.1280762,2649.1,2649.0,1.72270964]
[1729381108738,4.1280762,2649.1,2649.0,1.72270956]
[1729381109743,4.1280762,2649.1,2649.0,0.13977516]
[1729381109931,4.1280762,2649.1,2649.0,1.72259879]
[1729381111137,3.77493,2649.1,2649.0,1.72259879]
[1729381111503,4.12802536,2649.1,2649.0,1.72229399]
[1729381111810,3.77493,2649.1,2649.0,1.72229399]
[1729381113451,3.77486,2649.1,2649.0,1.72229399]
[1729381113849,4.12795533,2649.1,2649.0,1.72229399]
[1729381114022,4.99748386,2649.1,2649.0,1.72229399]
[1729381114227,6.30138386,2649.1,2649.0,1.72229399]
[1729381114541,6.30138386,2649.1,2649.0,1.18709213]
[1729381118347,6.30138386,2649.1,2649.0,0.13951463]
[1729381118753,5.94828853,2649.1,2649.0,1.72233723]
[1729381119043,6.30144794,2649.1,2649.0,1.72233723]
[1729381120470,6.3014548,2649.1,2649.0,1.58282363]
[1729381120622,4.6780225,2649.1,2649.0,1.72235363]
[1729381122174,4.1280225,2649.1,2649.0,1.72235363]
[1729381122462,4.12801899,2649.1,2649.0,1.72235363]
[1729381126125,4.12801899,2649.1,2649.0,1.72244853]
[1729381128357,4.12801899,2649.1,2649.0,1.72246512]
[1729381129952,3.77486,2649.1,2649.0,1.58282363]
[1729381130193,4.12811924,2649.1,2649.0,1.72246833]
[1729381130509,4.12812756,2649.1,2649.0,1.72246762]
[1729381130859,4.69337164,2649.1,2649.0,1.72246762]
[1729381131061,4.12812756,2649.1,2649.0,1.72246762]
[1729381131361,4.69343166,2649.1,2649.0,1.72246762]
[1729381135114,4.69343166,2649.1,2649.0,0.13964399]
[1729381135277,4.69343166,2649.1,2649.0,1.72383673]
[1729381135480,4.69343166,2649.1,2649.0,0.13964399]
[1729381135815,4.69343166,2649.1,2649.0,1.72383679]
[1729381136117,4.69343166,2649.1,2649.0,0.13964399]
[1729381136327,5.61563783,2649.1,2649.0,0.13964399]
[1729381137226,5.61563783,2649.1,2649.0,2.11974297]
[1729381137520,3.775,2649.0,2648.9,1.98009898]
[1729381137704,4.12846375,2649.0,2648.9,2.11974656]
[1729381138371,4.12846375,2649.0,2648.9,0.13964758]
[1729381139620,4.69413507,2649.0,2648.9,0.13964758]
[1729381139943,4.12846375,2649.0,2648.9,0.13964758]
[1729381140121,4.69413233,2649.0,2648.9,0.13964758]
[1729381141187,4.69706617,2649.1,2648.7,2.37701268]
[1729381141435,3.77515,2648.9,2648.8,0.13966189]
[1729381141739,4.12874919,2648.9,2648.8,0.13966189]
[1729381141909,4.12874919,2648.9,2648.8,2.51667457]
[1729381142232,4.12874919,2648.9,2648.8,0.13966189]
[1729381142433,4.12874919,2648.9,2648.8,2.51667457]
[1729381142588,3.77515,2648.9,2648.8,2.51667457]
[1729381142792,4.12876711,2648.9,2648.8,0.13966189]
[1729381142995,4.12876711,2648.9,2648.8,2.51667457]
[1729381143995,4.12876711,2648.9,2648.8,0.13966189]
[1729381144194,4.12876711,2648.9,2648.8,2.51667457]
[1729381144445,0.35361711,2648.9,2648.8,2.51667457]
[1729381146537,0.35361711,2648.9,2648.8,2.5174209]
[1729381147538,4.12876711,2648.9,2648.8,2.5174209]
[1729381147702,0.35361711,2648.9,2648.8,3.3064209]
[1729381151212,0.35363478,2648.9,2648.8,3.3064485]
[1729381151413,0.35363478,2648.9,2648.8,3.30646701]
[1729381152026,4.12878478,2648.9,2648.8,3.30646701]
[1729381153267,0.35363478,2648.9,2648.8,3.30646701]
[1729381154740,0.35363478,2648.9,2648.8,0.92868949]
[1729381155065,0.35363478,2648.9,2648.8,1.67650882]
[1729381155632,0.3535137,2648.9,2648.8,1.67650882]
[1729381155827,3.77494,2649.1,2648.8,1.67650882]
[1729381156063,4.12852906,2649.0,2648.9,0.13968949]
[1729381156233,4.12852906,2649.0,2648.9,2.5173998]
[1729381157642,4.12852906,2649.0,2648.9,2.517299]
[1729381157843,3.77501,2649.0,2648.9,2.37760951]
[1729381158041,4.48200044,2649.0,2648.9,2.51724961]
[1729381161061,4.48200044,2649.0,2648.9,2.5171678]
[1729381161558,4.48201533,2649.0,2648.9,2.51715272]
[1729381162078,4.48201694,2649.0,2648.9,2.51625384]
[1729381162471,4.12852045,2649.0,2648.9,2.51625384]
[1729381165286,3.77501,2649.0,2648.9,2.3766285]
[1729381165587,4.12851442,2649.0,2648.9,2.51624855]
[1729381165758,4.12851442,2649.0,2648.9,0.13962005]
[1729381166379,0.35350442,2649.0,2648.9,0.13962005]
[1729381167774,0.35350442,2649.0,2648.9,0.38962005]
[1729381168160,0.35350442,2649.0,2648.9,2.76696541]
[1729381172888,0.35350442,2649.0,2648.9,2.51696712]
[1729381175695,0.35350442,2649.0,2648.9,2.51671658]
[1729381176168,0.35350442,2649.0,2648.9,2.37709482]
[1729381176353,0.35350442,2649.0,2648.9,2.51672998]
[1729381180574,0.35351086,2649.0,2648.9,2.51674409]
[1729381183286,3.7749,2649.1,2648.9,2.37709482]
[1729381183489,0.35351035,2649.0,2648.9,2.37709482]
[1729381183700,0.35351035,2649.0,2648.9,2.51676437]
[1729381183873,3.7749,2649.1,2648.9,2.51676451]
[1729381184070,3.7749,2649.1,2649.0,0.13966969]
[1729381184297,4.12841959,2649.1,2649.0,0.13966969]
[1729381184497,4.12841959,2649.1,2649.0,0.13968243]
[1729381191949,0.35351959,2649.1,2649.0,0.13968243]
[1729381194658,0.35351959,2649.1,2649.0,0.13969115]
[1729381194659,0.35357536,2649.1,2649.0,0.13969115]
[1729381194954,4.12843536,2649.1,2649.0,0.13969115]
[1729381195450,4.12843536,2649.1,2649.0,2.51744166]
[1729381196450,4.12843536,2649.1,2649.0,0.13969115]
[1729381196953,4.69416035,2649.1,2649.0,0.13969115]
[1729381197161,4.69419506,2649.1,2649.0,0.13969115]
[1729381197342,4.12843536,2649.1,2649.0,0.13969115]
[1729381197515,4.69418238,2649.1,2649.0,0.13969115]
[1729381197717,4.69421462,2649.1,2649.0,0.13969115]
[1729381198024,4.12845793,2649.1,2649.0,0.13969115]
[1729381198329,4.6942059,2649.1,2649.0,0.13969115]
[1729381198546,4.69420828,2649.1,2649.0,0.13969115]
[1729381201226,4.69420828,2649.1,2649.0,2.51784159]
[1729381201627,4.69420828,2649.1,2649.0,0.13969115]
[1729381201872,4.69420828,2649.1,2649.0,2.51784159]
[1729381202128,4.69420828,2649.1,2649.0,0.13969115]
[1729381202379,4.69420828,2649.1,2649.0,2.51784159]
[1729381203080,4.69420828,2649.1,2649.0,0.13969115]
[1729381203377,4.69420828,2649.1,2649.0,2.51784159]
[1729381203731,4.6943583,2649.1,2649.0,2.51798437]
[1729381204336,4.69435721,2649.1,2649.0,2.51798437]
[1729381204541,4.69435721,2649.1,2649.0,0.13968644]
[1729381204740,4.69435721,2649.1,2649.0,2.51798437]
[1729381204966,4.69435721,2649.1,2649.0,0.13968644]
[1729381205170,4.69435721,2649.1,2649.0,2.51798437]
[1729381207253,3.77486,2649.1,2649.0,2.37829793]
[1729381207448,4.69441383,2649.1,2649.0,0.13969009]
[1729381207653,4.69441383,2649.1,2649.0,2.51798802]
[1729381208536,4.69441383,2649.1,2649.0,2.51809947]
[1729381210980,4.69441383,2649.1,2649.0,2.51809571]
[1729381213465,4.69441383,2649.1,2649.0,2.51811067]
[1729381213844,5.54131321,2649.1,2649.0,2.51811067]
[1729381214338,5.54170338,2649.1,2649.0,2.51811067]
[1729381216077,5.54170338,2649.1,2649.0,2.37842434]
[1729381216243,5.54170338,2649.1,2649.0,2.51811344]
[1729381216643,1.76684338,2649.1,2649.0,2.51811344]
[1729381216842,0.919944,2649.1,2649.0,2.51811344]
[1729381217284,0.35382461,2649.1,2649.0,2.51811344]
[1729381217507,0.35382461,2649.1,2649.0,0.9195891]
[1729381217670,4.55921,2649.9,2649.3,3.77449]
[1729381217997,4.55921,2649.9,2649.6,1.18897458]
[1729381217998,3.77401,2649.7,2649.6,1.18897458]
[1729381218166,4.69402862,2649.7,2649.6,1.18897458]
[1729381218373,3.77415,2649.6,2649.5,1.18897458]
[1729381218607,5.47956862,2649.6,2649.5,1.18897458]
[1729381218763,5.47956862,2649.6,2649.4,1.58496183]
[1729381218764,4.32429,2649.5,2649.4,1.58496183]
[1729381218976,1.47001862,2649.5,2649.4,2.1208853]
[1729381219256,1.47001862,2649.5,2649.4,0.13968302]
[1729381220505,5.24430862,2649.5,2649.4,1.7247586]
[1729381221001,5.24430862,2649.5,2649.4,0.13968302]
[1729381221156,5.24430862,2649.5,2649.4,1.7247377]
[1729381221355,4.32429,2649.5,2649.4,1.58505468]
[1729381221906,4.32429,2649.5,2649.4,1.72470266]
[1729381222071,4.32429,2649.5,2649.4,1.72460886]
[1729381222398,3.77429,2649.5,2649.4,1.72454651]
[1729381222706,3.77429,2649.5,2649.4,2.12085026]
[1729381225966,3.77429,2649.5,2649.4,0.13964798]
[1729381226667,3.77429,2649.5,2649.4,1.72393872]
[1729381227080,3.77429,2649.5,2649.4,0.13964798]
[1729381227276,3.77429,2649.5,2649.4,1.72394149]
[1729381228609,3.77429,2649.5,2649.4,1.72386943]
[1729381229902,3.77429,2649.5,2649.4,1.58429351]
[1729381230448,3.77429,2649.5,2649.4,1.7238683]
[1729381230819,3.77415,2649.6,2649.4,2.11988137]
[1729381231056,3.77415,2649.6,2649.5,1.5839855]
[1729381231753,3.77415,2649.6,2649.5,2.51193036]
[1729381232113,3.77415,2649.6,2649.5,0.92795229]
[1729381232316,3.77415,2649.6,2649.5,2.51160795]
[1729381235046,3.77406,2649.7,2649.5,2.51160795]
[1729381235251,3.77406,2649.7,2649.5,2.37205566]
[1729381235454,3.77406,2649.7,2649.6,1.58365566]
[1729381235768,3.7739,2649.8,2649.6,1.58365566]
[1729381236070,3.77377,2649.9,2649.6,2.01881871]
[1729381236257,3.77377,2649.9,2649.8,1.18720426]
[1729381236258,7.54758,2649.9,2649.8,1.18720426]
[1729381237539,3.77377,2649.9,2649.8,1.18720426]
[1729381238365,3.77377,2649.9,2649.7,1.18720426]
[1729381238572,7.54758,2649.9,2649.7,1.18720426]
[1729381240039,3.77386,2649.8,2649.7,1.18720426]
[1729381242987,3.77377,2649.9,2649.7,1.18720426]
[1729381243194,3.77377,2649.9,2649.8,0.79115301]
[1729381243745,3.77377,2649.9,2649.7,1.54313025]
[1729381244296,3.77377,2649.9,2649.8,0.79108395]
[1729381244599,7.54759,2649.9,2649.8,0.7910861]
[1729381245098,3.77377,2649.9,2649.8,0.79109524]
[1729381249003,3.77359,2650.0,2649.7,1.18720426]
[1729381249207,3.77337,2650.2,2649.9,0.79098798]
[1729381249372,3.77337,2650.2,2650.0,0.79089191]
[1729381249373,3.77345,2650.1,2650.0,0.79089191]
[1729381265209,3.77337,2650.2,2650.0,1.07184153]
[1729381265415,3.77337,2650.2,2650.1,1.57409191]
[1729381270169,3.77316,2650.3,2650.1,0.7832]
[1729381270342,7.54595,2650.5,2650.2,0.79082252]
[1729381270542,3.77301,2650.4,2650.3,1.0669452]
[1729381270734,3.77268,2650.7,2650.3,0.79082252]
[1729381271185,0.8033,2650.8,2650.3,0.79082252]
[1729381271330,3.773,2650.5,2650.3,0.79082252]
[1729381271646,7.546,2650.5,2650.3,0.79082252]
[1729381273035,3.77301,2650.4,2650.3,0.79082252]
[1729381273233,3.77301,2650.4,2650.3,1.22531076]
[1729381273934,3.773,2650.5,2650.3,1.22531076]
[1729381274577,3.77298,2650.5,2650.3,1.22531076]
[1729381274981,3.77301,2650.4,2650.3,1.22531076]
[1729381275270,3.77301,2650.4,2650.3,0.43448824]
[1729381275473,3.77301,2650.4,2650.3,1.22531076]
[1729381276351,3.77301,2650.4,2650.3,0.43448824]
[1729381276531,3.77301,2650.4,2650.3,1.22531076]
[1729381277136,3.77301,2650.4,2650.3,0.43448824]
[1729381277358,3.77301,2650.4,2650.3,1.22531076]
[1729381279193,4.5328,2650.2,2650.1,0.79082252]
[1729381279411,4.5328,2650.2,2649.9,0.79082252]
[1729381279412,3.77344,2650.1,2649.9,0.79082252]
[1729381279685,4.53308,2650.0,2649.9,0.79082252]
[1729381280546,3.77386,2649.8,2649.7,1.18720426]
[1729381280796,3.77401,2649.7,2649.6,1.58365566]
[1729381280947,3.77401,2649.7,2649.6,2.15561046]
[1729381283288,3.77401,2649.7,2649.6,0.5719548]
[1729381284490,3.77401,2649.7,2649.6,2.54971487]
[1729381284986,3.77401,2649.7,2649.6,2.54967237]
[1729381285599,3.77386,2649.8,2649.6,2.54967237]
[1729381285779,3.77386,2649.8,2649.7,1.72199529]
[1729381286292,3.77386,2649.8,2649.7,1.58257013]
[1729381288800,3.77386,2649.8,2649.6,1.72198251]
[1729381289004,3.77386,2649.8,2649.6,1.58257013]
[1729381289164,3.77386,2649.8,2649.7,1.18703229]
[1729381290047,4.54296,2649.8,2649.7,1.18703229]
[1729381290691,4.54296,2649.8,2649.7,1.18702262]
[1729381290996,4.54296,2649.8,2649.6,1.18702262]
[1729381291206,3.77401,2649.7,2649.6,1.18702262]
[1729381293694,7.54781,2649.8,2649.6,1.94192262]
[1729381293866,3.77386,2649.8,2649.7,0.7912211]
[1729381294198,3.77319,2650.3,2649.7,2.01414152]
[1729381294199,3.77337,2650.2,2649.7,2.01414152]
[1729381294353,3.77337,2650.2,2650.0,0.79114094]
[1729381294551,3.77307,2650.4,2650.0,0.79114094]
[1729381294757,3.77307,2650.4,2650.2,0.79114094]
[1729381294953,3.77315,2650.3,2650.2,0.79114094]
[1729381295666,3.77315,2650.3,2650.1,1.54604094]
[1729381295862,3.77315,2650.3,2650.2,0.79114094]
[1729381297704,3.77295,2650.5,2650.2,1.45998666]
[1729381297864,3.77295,2650.5,2650.4,0.79099057]
[1729381300211,3.7726,2650.7,2650.4,0.79099057]
[1729381300512,3.77276,2650.6,2650.4,0.79099057]